[Event "Titled Tuesday Blitz March 08 Late 2022"]
[White "Kopczynski, Michal"]
[Black "McNeill, Gordon"]
[WhiteFideId "1124200"]
[BlackFideId "30920760"]
[WhiteElo "2235"]
[BlackElo "2265"]
[Result "1-0"]
[Round "05"]
[TimeControl "180+1"]
[Date "2022.03.09"]
[WhiteClock "0:00:45"]
[BlackClock "0:00:18"]

1. e4 {[%clk 0:03:00]}  e6 {[%clk 0:02:59]} 2. d4 {[%clk 0:03:01]}  d5 {[%clk 0:02:59]} 3. Nc3 {[%clk 0:03:01]}  Nf6 {[%clk 0:02:58]} 4. e5 {[%clk 0:03:02]}  Nfd7 {[%clk 0:02:57]} 5. f4 {[%clk 0:03:03]}  c5 {[%clk 0:02:56]} 6. dxc5 {[%clk 0:03:03]}  Bxc5 {[%clk 0:02:54]} 7. Nf3 {[%clk 0:03:04]}  Nc6 {[%clk 0:02:54]} 8. Bd3 {[%clk 0:03:04]}  h6 {[%clk 0:02:43]} 9. Qe2 {[%clk 0:03:03]}  O-O {[%clk 0:02:39]} 10. Bd2 {[%clk 0:03:03]}  a6 {[%clk 0:02:33]} 11. O-O-O {[%clk 0:03:03]}  b5 {[%clk 0:02:29]} 12. f5 {[%clk 0:03:03]}  Nd4 {[%clk 0:02:12]} 13. Nxd4 {[%clk 0:03:01]}  Bxd4 {[%clk 0:02:13]} 14. f6 {[%clk 0:02:56]}  Bxe5 {[%clk 0:02:07]} 15. fxg7 {[%clk 0:02:49]}  Bxg7 {[%clk 0:02:08]} 16. Kb1 {[%clk 0:02:41]}  Ne5 {[%clk 0:02:04]} 17. Bxh6 {[%clk 0:02:38]}  Bxh6 {[%clk 0:01:54]} 18. Qxe5 {[%clk 0:02:37]}  Bg7 {[%clk 0:01:54]} 19. Qg3 {[%clk 0:02:37]}  b4 {[%clk 0:01:41]} 20. Ne2 {[%clk 0:02:34]}  Qf6 {[%clk 0:01:39]} 21. Nd4 {[%clk 0:02:19]}  Qe5 {[%clk 0:00:59]} 22. Qh4 {[%clk 0:01:48]}  f5 {[%clk 0:00:52]} 23. Be2 {[%clk 0:01:39]}  a5 {[%clk 0:00:38]} 24. Rhe1 {[%clk 0:01:36]}  Qf6 {[%clk 0:00:36]} 25. Qg3 {[%clk 0:01:33]}  f4 {[%clk 0:00:28]} 26. Qf3 {[%clk 0:01:21]}  Bb7 {[%clk 0:00:28]} 27. c3 {[%clk 0:00:53]}  bxc3 {[%clk 0:00:26]} 28. Qxc3 {[%clk 0:00:54]}  e5 {[%clk 0:00:23]} 29. Nf3 {[%clk 0:00:46]}  d4 {[%clk 0:00:21]} 30. Qb3+ {[%clk 0:00:45]}  Qf7 {[%clk 0:00:18]} 31. Bc4 {[%clk 0:00:45]} 1-0


[Site "https://www.chess.com"]

[Event "Titled Tuesday Blitz March 08 Late 2022"]
[White "Kosakowski, Jakub"]
[Black "Dounis, Alexandros"]
[WhiteFideId "1185080"]
[BlackFideId "4213238"]
[WhiteElo "2476"]
[BlackElo "2204"]
[Result "1-0"]
[Round "05"]
[TimeControl "180+1"]
[Date "2022.03.08"]
[WhiteClock "0:00:04"]
[BlackClock "0:00:01"]

1. d4 {[%clk 0:03:00]}  Nf6 {[%clk 0:03:00]} 2. c4 {[%clk 0:03:00]}  g6 {[%clk 0:03:00]} 3. Nf3 {[%clk 0:02:58]}  Bg7 {[%clk 0:03:00]} 4. g3 {[%clk 0:02:56]}  O-O {[%clk 0:03:00]} 5. Bg2 {[%clk 0:02:57]}  d5 {[%clk 0:03:00]} 6. cxd5 {[%clk 0:02:56]}  Nxd5 {[%clk 0:03:01]} 7. O-O {[%clk 0:02:56]}  Nc6 {[%clk 0:03:01]} 8. Nc3 {[%clk 0:02:50]}  e5 {[%clk 0:03:01]} 9. Nxd5 {[%clk 0:02:20]}  e4 {[%clk 0:03:01]} 10. Ne5 {[%clk 0:02:11]}  Qxd5 {[%clk 0:02:59]} 11. Nxc6 {[%clk 0:02:08]}  Qxc6 {[%clk 0:02:57]} 12. Bf4 {[%clk 0:02:07]}  Bf5 {[%clk 0:02:49]} 13. Rc1 {[%clk 0:02:06]}  Qb6 {[%clk 0:02:49]} 14. e3 {[%clk 0:01:43]}  c6 {[%clk 0:02:48]} 15. b3 {[%clk 0:01:41]}  h5 {[%clk 0:02:40]} 16. h3 {[%clk 0:01:39]}  Rfe8 {[%clk 0:02:40]} 17. Rc5 {[%clk 0:01:33]}  Bf8 {[%clk 0:02:36]} 18. Rxf5 {[%clk 0:01:33]}  gxf5 {[%clk 0:02:34]} 19. Qxh5 {[%clk 0:01:33]}  c5 {[%clk 0:02:29]} 20. Qxf5 {[%clk 0:01:32]}  cxd4 {[%clk 0:02:19]} 21. Bxe4 {[%clk 0:01:13]}  Qg6 {[%clk 0:02:19]} 22. Qxg6+ {[%clk 0:01:11]}  fxg6 {[%clk 0:02:20]} 23. Bd5+ {[%clk 0:01:10]}  Kh7 {[%clk 0:02:14]} 24. exd4 {[%clk 0:01:11]}  Rad8 {[%clk 0:02:14]} 25. Bxb7 {[%clk 0:01:10]}  Rxd4 {[%clk 0:02:13]} 26. Be3 {[%clk 0:01:10]}  Rb4 {[%clk 0:02:00]} 27. Ba6 {[%clk 0:01:05]}  Re7 {[%clk 0:01:36]} 28. Bc5 {[%clk 0:01:03]}  Rf7 {[%clk 0:01:25]} 29. Bxb4 {[%clk 0:01:01]}  Bxb4 {[%clk 0:01:26]} 30. Rc1 {[%clk 0:00:56]}  Ba5 {[%clk 0:01:23]} 31. Kg2 {[%clk 0:00:50]}  Bb6 {[%clk 0:01:23]} 32. Rc2 {[%clk 0:00:50]}  g5 {[%clk 0:01:22]} 33. Bd3+ {[%clk 0:00:49]}  Kg7 {[%clk 0:01:21]} 34. g4 {[%clk 0:00:49]}  Rf4 {[%clk 0:01:14]} 35. Bf5 {[%clk 0:00:47]}  Kf6 {[%clk 0:01:13]} 36. Re2 {[%clk 0:00:44]}  Kf7 {[%clk 0:01:08]} 37. Be6+ {[%clk 0:00:35]}  Kf6 {[%clk 0:01:07]} 38. Bc4 {[%clk 0:00:35]}  Kg7 {[%clk 0:01:07]} 39. f3 {[%clk 0:00:31]}  Rd4 {[%clk 0:01:07]} 40. Re7+ {[%clk 0:00:25]}  Kf6 {[%clk 0:01:05]} 41. Re6+ {[%clk 0:00:25]}  Kg7 {[%clk 0:01:04]} 42. h4 {[%clk 0:00:16]}  Rd2+ {[%clk 0:01:03]} 43. Kh3 {[%clk 0:00:16]}  gxh4 {[%clk 0:00:49]} 44. Kxh4 {[%clk 0:00:16]}  Rxa2 {[%clk 0:00:50]} 45. Kg5 {[%clk 0:00:12]}  Ra5+ {[%clk 0:00:49]} 46. Kh4 {[%clk 0:00:11]}  Bf2+ {[%clk 0:00:47]} 47. Kh3 {[%clk 0:00:10]}  Ra1 {[%clk 0:00:44]} 48. f4 {[%clk 0:00:10]}  Rg1 {[%clk 0:00:41]} 49. f5 {[%clk 0:00:06]}  Bd4 {[%clk 0:00:36]} 50. Re7+ {[%clk 0:00:03]}  Kf6 {[%clk 0:00:35]} 51. Re6+ {[%clk 0:00:04]}  Kg5 {[%clk 0:00:35]} 52. Rg6+ {[%clk 0:00:04]}  Kf4 {[%clk 0:00:35]} 53. f6 {[%clk 0:00:05]}  Rg3+ {[%clk 0:00:33]} 54. Kh2 {[%clk 0:00:05]}  Bg1+ {[%clk 0:00:24]} 55. Kh1 {[%clk 0:00:04]}  Bc5 {[%clk 0:00:24]} 56. f7 {[%clk 0:00:05]}  Kf3 {[%clk 0:00:21]} 57. Rf6+ {[%clk 0:00:05]}  Kxg4 {[%clk 0:00:20]} 58. f8=Q {[%clk 0:00:05]}  Rh3+ {[%clk 0:00:17]} 59. Kg2 {[%clk 0:00:04]}  Bxf8 {[%clk 0:00:16]} 60. Rxf8 {[%clk 0:00:03]}  Rc3 {[%clk 0:00:16]} 61. Ra8 {[%clk 0:00:02]}  Rc2+ {[%clk 0:00:15]} 62. Kf1 {[%clk 0:00:03]}  Kf3 {[%clk 0:00:15]} 63. Ke1 {[%clk 0:00:03]}  Ke3 {[%clk 0:00:15]} 64. Kd1 {[%clk 0:00:04]}  Ra2 {[%clk 0:00:16]} 65. Kc1 {[%clk 0:00:04]}  Kd4 {[%clk 0:00:16]} 66. Kb1 {[%clk 0:00:04]}  Ra5 {[%clk 0:00:11]} 67. Kb2 {[%clk 0:00:05]}  Kc5 {[%clk 0:00:11]} 68. Rh8 {[%clk 0:00:05]}  Kb6 {[%clk 0:00:09]} 69. Rh6+ {[%clk 0:00:05]}  Kb7 {[%clk 0:00:09]} 70. Rh7+ {[%clk 0:00:05]}  Kb6 {[%clk 0:00:08]} 71. Kc3 {[%clk 0:00:06]}  Rg5 {[%clk 0:00:08]} 72. Kb4 {[%clk 0:00:07]}  a5+ {[%clk 0:00:08]} 73. Ka4 {[%clk 0:00:07]}  Rg6 {[%clk 0:00:08]} 74. Re7 {[%clk 0:00:06]}  Rg1 {[%clk 0:00:06]} 75. Re6+ {[%clk 0:00:06]}  Kc5 {[%clk 0:00:06]} 76. Re5+ {[%clk 0:00:05]}  Kb6 {[%clk 0:00:05]} 77. Rb5+ {[%clk 0:00:05]}  Kc6 {[%clk 0:00:04]} 78. Rxa5 {[%clk 0:00:05]}  Rg8 {[%clk 0:00:01]} 79. Bxg8 {[%clk 0:00:04]} 1-0


[Site "https://www.chess.com"]

[Event "Titled Tuesday Blitz March 08 Late 2022"]
[White "Kozina, Anastasia"]
[Black "Warakomska, Anna"]
[WhiteFideId "24174017"]
[BlackFideId "1130790"]
[WhiteElo "1993"]
[BlackElo "2062"]
[Result "1-0"]
[Round "05"]
[TimeControl "180+1"]
[Date "2022.03.09"]
[WhiteClock "0:00:17"]
[BlackClock "0:00:10"]

1. e4 {[%clk 0:02:31]}  c5 {[%clk 0:02:58]} 2. Nc3 {[%clk 0:02:29]}  e6 {[%clk 0:02:57]} 3. g3 {[%clk 0:02:30]}  d5 {[%clk 0:02:57]} 4. Bg2 {[%clk 0:02:30]}  d4 {[%clk 0:02:47]} 5. Nce2 {[%clk 0:02:29]}  d3 {[%clk 0:02:47]} 6. cxd3 {[%clk 0:02:23]}  Nc6 {[%clk 0:02:47]} 7. Nf4 {[%clk 0:02:09]}  Nf6 {[%clk 0:02:14]} 8. Nf3 {[%clk 0:02:08]}  Bd6 {[%clk 0:02:02]} 9. Qe2 {[%clk 0:01:57]}  Bxf4 {[%clk 0:01:56]} 10. gxf4 {[%clk 0:01:57]}  Nb4 {[%clk 0:01:56]} 11. O-O {[%clk 0:01:53]}  Qxd3 {[%clk 0:01:50]} 12. Qe3 {[%clk 0:01:35]}  Nxe4 {[%clk 0:01:34]} 13. Ne5 {[%clk 0:01:22]}  Qxe3 {[%clk 0:01:29]} 14. fxe3 {[%clk 0:01:15]}  Nf6 {[%clk 0:01:23]} 15. d4 {[%clk 0:00:43]}  cxd4 {[%clk 0:01:21]} 16. exd4 {[%clk 0:00:43]}  Nc2 {[%clk 0:01:20]} 17. Rb1 {[%clk 0:00:43]}  Nxd4 {[%clk 0:01:20]} 18. Be3 {[%clk 0:00:43]}  Nf5 {[%clk 0:01:17]} 19. Bc5 {[%clk 0:00:40]}  Nd7 {[%clk 0:01:01]} 20. Nxd7 {[%clk 0:00:35]}  Bxd7 {[%clk 0:01:01]} 21. Bxb7 {[%clk 0:00:32]}  Rb8 {[%clk 0:01:01]} 22. Be4 {[%clk 0:00:28]}  a6 {[%clk 0:00:50]} 23. b4 {[%clk 0:00:25]}  Ne7 {[%clk 0:00:41]} 24. Rfd1 {[%clk 0:00:18]}  Ba4 {[%clk 0:00:34]} 25. Rd6 {[%clk 0:00:18]}  Rd8 {[%clk 0:00:19]} 26. Rxa6 {[%clk 0:00:17]}  f6 {[%clk 0:00:18]} 27. Rxa4 {[%clk 0:00:15]}  f5 {[%clk 0:00:14]} 28. Bg2 {[%clk 0:00:15]}  Nd5 {[%clk 0:00:12]} 29. Ra7 {[%clk 0:00:15]}  Ne3 {[%clk 0:00:10]} 30. Bxe3 {[%clk 0:00:15]}  O-O {[%clk 0:00:09]} 31. b5 {[%clk 0:00:15]}  Kh8 {[%clk 0:00:10]} 32. b6 {[%clk 0:00:16]}  Rd3 {[%clk 0:00:09]} 33. Bf2 {[%clk 0:00:15]}  Rdd8 {[%clk 0:00:09]} 34. b7 {[%clk 0:00:16]}  Rb8 {[%clk 0:00:09]} 35. Bd4 {[%clk 0:00:16]}  Kg8 {[%clk 0:00:09]} 36. Be5 {[%clk 0:00:17]}  g6 {[%clk 0:00:09]} 37. Bxb8 {[%clk 0:00:16]}  Rxb8 {[%clk 0:00:10]} 38. Ra8 {[%clk 0:00:17]} 1-0


[Site "https://www.chess.com"]

[Event "Titled Tuesday Blitz March 08 Late 2022"]
[White "Kuegel, Tobias"]
[Black "Golubka, Petro"]
[WhiteFideId "4636295"]
[BlackFideId "14114224"]
[WhiteElo "2213"]
[BlackElo "2346"]
[Result "1-0"]
[Round "05"]
[TimeControl "180+1"]
[Date "2022.03.09"]
[WhiteClock "0:01:08"]
[BlackClock "0:01:24"]

1. e4 {[%clk 0:03:00]}  e5 {[%clk 0:02:59]} 2. Nf3 {[%clk 0:03:00]}  Nc6 {[%clk 0:02:59]} 3. Bb5 {[%clk 0:02:59]}  Nf6 {[%clk 0:02:56]} 4. O-O {[%clk 0:02:57]}  d6 {[%clk 0:02:55]} 5. d4 {[%clk 0:02:55]}  Bd7 {[%clk 0:02:55]} 6. Nc3 {[%clk 0:02:49]}  exd4 {[%clk 0:02:52]} 7. Nxd4 {[%clk 0:02:49]}  Nxd4 {[%clk 0:02:53]} 8. Bxd7+ {[%clk 0:02:47]}  Qxd7 {[%clk 0:02:53]} 9. Qxd4 {[%clk 0:02:47]}  Be7 {[%clk 0:02:54]} 10. Rd1 {[%clk 0:02:45]}  Qc6 {[%clk 0:02:49]} 11. e5 {[%clk 0:02:28]}  dxe5 {[%clk 0:02:49]} 12. Qxe5 {[%clk 0:02:29]}  Kf8 {[%clk 0:02:45]} 13. Bg5 {[%clk 0:02:25]}  h6 {[%clk 0:02:44]} 14. Bh4 {[%clk 0:02:22]}  Re8 {[%clk 0:02:33]} 15. Qb5 {[%clk 0:02:12]}  Qxb5 {[%clk 0:02:13]} 16. Nxb5 {[%clk 0:02:13]}  c6 {[%clk 0:02:14]} 17. Nd6 {[%clk 0:02:04]}  Bxd6 {[%clk 0:02:09]} 18. Rxd6 {[%clk 0:02:05]}  Nd5 {[%clk 0:01:42]} 19. Rd7 {[%clk 0:01:57]}  f5 {[%clk 0:01:39]} 20. f3 {[%clk 0:01:47]}  g5 {[%clk 0:01:37]} 21. Bf2 {[%clk 0:01:45]}  b6 {[%clk 0:01:35]} 22. Rxa7 {[%clk 0:01:41]}  c5 {[%clk 0:01:34]} 23. Rd1 {[%clk 0:01:38]}  Nf6 {[%clk 0:01:29]} 24. Rd6 {[%clk 0:01:27]}  Nh5 {[%clk 0:01:26]} 25. Rxb6 {[%clk 0:01:21]}  Rc8 {[%clk 0:01:25]} 26. Bxc5+ {[%clk 0:01:17]}  Ke8 {[%clk 0:01:24]} 27. Re6+ {[%clk 0:01:08]} 1-0


[Site "https://www.chess.com"]

[Event "Titled Tuesday Blitz March 08 Late 2022"]
[White "Kushko, Dmitriy"]
[Black "Vifleemskaia, Svetlana"]
[WhiteFideId "14162261"]
[BlackFideId "4129490"]
[WhiteElo "2225"]
[BlackElo "1901"]
[Result "1-0"]
[Round "05"]
[TimeControl "180+1"]
[Date "2022.03.09"]
[WhiteClock "0:00:08"]
[BlackClock "0:00:01"]

1. Nf3 {[%clk 0:03:00]}  Nf6 {[%clk 0:02:59]} 2. g3 {[%clk 0:02:59]}  b5 {[%clk 0:02:57]} 3. Na3 {[%clk 0:02:59]}  a6 {[%clk 0:02:56]} 4. c4 {[%clk 0:02:58]}  b4 {[%clk 0:02:54]} 5. Nc2 {[%clk 0:02:57]}  a5 {[%clk 0:02:52]} 6. Bg2 {[%clk 0:02:48]}  Bb7 {[%clk 0:02:51]} 7. O-O {[%clk 0:02:48]}  e6 {[%clk 0:02:50]} 8. d4 {[%clk 0:02:46]}  d6 {[%clk 0:02:48]} 9. Nce1 {[%clk 0:02:31]}  Nbd7 {[%clk 0:02:38]} 10. Nd3 {[%clk 0:02:31]}  Be4 {[%clk 0:02:34]} 11. Nd2 {[%clk 0:02:18]}  Bxg2 {[%clk 0:02:33]} 12. Kxg2 {[%clk 0:02:19]}  c5 {[%clk 0:02:11]} 13. dxc5 {[%clk 0:02:16]}  Nxc5 {[%clk 0:02:10]} 14. Nxc5 {[%clk 0:02:08]}  dxc5 {[%clk 0:02:09]} 15. e4 {[%clk 0:02:05]}  Qc7 {[%clk 0:02:03]} 16. e5 {[%clk 0:01:56]}  Qc6+ {[%clk 0:01:59]} 17. Kg1 {[%clk 0:01:36]}  Nd7 {[%clk 0:01:56]} 18. f4 {[%clk 0:01:36]}  Be7 {[%clk 0:01:51]} 19. Qc2 {[%clk 0:01:08]}  O-O {[%clk 0:01:41]} 20. Ne4 {[%clk 0:01:08]}  Rfd8 {[%clk 0:01:24]} 21. Be3 {[%clk 0:01:06]}  a4 {[%clk 0:01:21]} 22. Rad1 {[%clk 0:00:55]}  Nb6 {[%clk 0:01:20]} 23. b3 {[%clk 0:00:45]}  axb3 {[%clk 0:01:17]} 24. axb3 {[%clk 0:00:46]}  h6 {[%clk 0:01:06]} 25. Qg2 {[%clk 0:00:41]}  Kf8 {[%clk 0:00:58]} 26. Nxc5 {[%clk 0:00:36]}  Qxg2+ {[%clk 0:00:53]} 27. Kxg2 {[%clk 0:00:36]}  Ra2+ {[%clk 0:00:50]} 28. Kf3 {[%clk 0:00:18]}  Rda8 {[%clk 0:00:40]} 29. Ne4 {[%clk 0:00:14]}  Nc8 {[%clk 0:00:31]} 30. Rf2 {[%clk 0:00:14]}  Rxf2+ {[%clk 0:00:24]} 31. Bxf2 {[%clk 0:00:14]}  Ra3 {[%clk 0:00:23]} 32. Rd3 {[%clk 0:00:14]}  Ke8 {[%clk 0:00:20]} 33. Bc5 {[%clk 0:00:14]}  f5 {[%clk 0:00:19]} 34. Nd6+ {[%clk 0:00:11]}  Bxd6 {[%clk 0:00:13]} 35. exd6 {[%clk 0:00:12]}  Kd7 {[%clk 0:00:11]} 36. Bxb4 {[%clk 0:00:13]}  Ra2 {[%clk 0:00:11]} 37. c5 {[%clk 0:00:13]}  Na7 {[%clk 0:00:09]} 38. Bc3 {[%clk 0:00:11]}  Rxh2 {[%clk 0:00:06]} 39. Bxg7 {[%clk 0:00:10]}  h5 {[%clk 0:00:05]} 40. b4 {[%clk 0:00:10]}  Rc2 {[%clk 0:00:03]} 41. Bc3 {[%clk 0:00:09]}  Rc1 {[%clk 0:00:01]} 42. Ke2 {[%clk 0:00:08]}  Rb1 {[%clk 0:00:01]} 43. Kd2 {[%clk 0:00:08]} 1-0


[Site "https://www.chess.com"]

[Event "Titled Tuesday Blitz March 08 Late 2022"]
[White "Maghsoodloo, Parham"]
[Black "Rostovtsev, Dmitry"]
[WhiteFideId "12539929"]
[BlackFideId "34278320"]
[WhiteElo "2630"]
[BlackElo "2359"]
[Result "0-1"]
[Round "05"]
[TimeControl "180+1"]
[Date "2022.03.08"]
[WhiteClock "0:00:02"]
[BlackClock "0:00:05"]

1. e4 {[%clk 0:02:54]}  c5 {[%clk 0:02:59]} 2. Nc3 {[%clk 0:02:52]}  Nc6 {[%clk 0:02:59]} 3. Bb5 {[%clk 0:02:52]}  Nd4 {[%clk 0:03:00]} 4. Nf3 {[%clk 0:02:52]}  g6 {[%clk 0:03:00]} 5. O-O {[%clk 0:02:48]}  Bg7 {[%clk 0:02:59]} 6. Re1 {[%clk 0:02:48]}  a6 {[%clk 0:02:57]} 7. Bd3 {[%clk 0:02:45]}  d6 {[%clk 0:02:54]} 8. h3 {[%clk 0:02:39]}  e5 {[%clk 0:02:52]} 9. Bc4 {[%clk 0:02:34]}  Ne7 {[%clk 0:02:51]} 10. a4 {[%clk 0:02:33]}  b6 {[%clk 0:02:49]} 11. d3 {[%clk 0:02:32]}  O-O {[%clk 0:02:49]} 12. Bg5 {[%clk 0:02:28]}  Be6 {[%clk 0:02:43]} 13. Bxe7 {[%clk 0:02:28]}  Qxe7 {[%clk 0:02:43]} 14. Nxd4 {[%clk 0:02:21]}  cxd4 {[%clk 0:02:41]} 15. Nd5 {[%clk 0:02:21]}  Qd8 {[%clk 0:02:32]} 16. b4 {[%clk 0:02:12]}  Bh6 {[%clk 0:02:13]} 17. b5 {[%clk 0:02:04]}  a5 {[%clk 0:02:14]} 18. Re2 {[%clk 0:01:59]}  Rc8 {[%clk 0:02:10]} 19. Ra3 {[%clk 0:01:59]}  Bxd5 {[%clk 0:02:10]} 20. Bxd5 {[%clk 0:01:59]}  Rc5 {[%clk 0:02:06]} 21. Bc4 {[%clk 0:01:56]}  Kg7 {[%clk 0:02:04]} 22. c3 {[%clk 0:01:56]}  dxc3 {[%clk 0:01:57]} 23. Rxc3 {[%clk 0:01:55]}  Qf6 {[%clk 0:01:55]} 24. Rcc2 {[%clk 0:01:49]}  Rfc8 {[%clk 0:01:54]} 25. Re1 {[%clk 0:01:48]}  R8c7 {[%clk 0:01:47]} 26. g3 {[%clk 0:01:47]}  Qd8 {[%clk 0:01:34]} 27. Ree2 {[%clk 0:01:09]}  Qe7 {[%clk 0:01:30]} 28. Kg2 {[%clk 0:01:08]}  Qd8 {[%clk 0:01:25]} 29. h4 {[%clk 0:01:08]}  Qc8 {[%clk 0:01:21]} 30. Ra2 {[%clk 0:01:01]}  Kg8 {[%clk 0:01:14]} 31. Qb3 {[%clk 0:01:01]}  Qg4 {[%clk 0:01:09]} 32. f3 {[%clk 0:00:57]}  Qd7 {[%clk 0:01:08]} 33. Ra1 {[%clk 0:00:56]}  Qe7 {[%clk 0:01:04]} 34. Rh1 {[%clk 0:00:56]}  Kg7 {[%clk 0:00:49]} 35. h5 {[%clk 0:00:52]}  g5 {[%clk 0:00:49]} 36. Qd1 {[%clk 0:00:48]}  Kf8 {[%clk 0:00:47]} 37. Qg1 {[%clk 0:00:46]}  f6 {[%clk 0:00:45]} 38. Qh2 {[%clk 0:00:45]}  Qd7 {[%clk 0:00:44]} 39. Qh3 {[%clk 0:00:39]}  Qxh3+ {[%clk 0:00:44]} 40. Kxh3 {[%clk 0:00:39]}  Kg7 {[%clk 0:00:29]} 41. Kg4 {[%clk 0:00:40]}  Re7 {[%clk 0:00:27]} 42. Kf5 {[%clk 0:00:39]}  Rcc7 {[%clk 0:00:23]} 43. Rhh2 {[%clk 0:00:39]}  Rc5 {[%clk 0:00:15]} 44. Rc2 {[%clk 0:00:39]}  Re8 {[%clk 0:00:15]} 45. Be6 {[%clk 0:00:36]}  Re7 {[%clk 0:00:13]} 46. Rc4 {[%clk 0:00:33]}  Re8 {[%clk 0:00:07]} 47. Rh1 {[%clk 0:00:32]}  Re7 {[%clk 0:00:06]} 48. Rd1 {[%clk 0:00:32]}  Rec7 {[%clk 0:00:06]} 49. Bd5 {[%clk 0:00:20]}  Re7 {[%clk 0:00:06]} 50. Bc6 {[%clk 0:00:20]}  Kf7 {[%clk 0:00:03]} 51. Bd5+ {[%clk 0:00:12]}  Kg7 {[%clk 0:00:04]} 52. d4 {[%clk 0:00:13]}  exd4 {[%clk 0:00:04]} 53. Rdxd4 {[%clk 0:00:12]}  Re5+ {[%clk 0:00:04]} 54. Kg4 {[%clk 0:00:12]}  f5+ {[%clk 0:00:05]} 55. Kh3 {[%clk 0:00:12]}  g4+ {[%clk 0:00:02]} 56. Kg2 {[%clk 0:00:11]}  gxf3+ {[%clk 0:00:02]} 57. Kxf3 {[%clk 0:00:12]}  fxe4+ {[%clk 0:00:03]} 58. Bxe4 {[%clk 0:00:12]}  d5 {[%clk 0:00:03]} 59. Bxd5 {[%clk 0:00:07]}  Rexd5 {[%clk 0:00:04]} 60. Rxd5 {[%clk 0:00:06]}  Rxc4 {[%clk 0:00:03]} 61. Rd7+ {[%clk 0:00:06]}  Kg8 {[%clk 0:00:03]} 62. Rd6 {[%clk 0:00:06]}  Rc3+ {[%clk 0:00:03]} 63. Kg4 {[%clk 0:00:06]}  Bf8 {[%clk 0:00:03]} 64. Rxb6 {[%clk 0:00:05]}  Rc4+ {[%clk 0:00:04]} 65. Kf5 {[%clk 0:00:05]}  Rxa4 {[%clk 0:00:05]} 66. g4 {[%clk 0:00:05]}  Rc4 {[%clk 0:00:04]} 67. g5 {[%clk 0:00:05]}  Rc5+ {[%clk 0:00:05]} 68. Kg4 {[%clk 0:00:05]}  a4 {[%clk 0:00:04]} 69. Ra6 {[%clk 0:00:03]}  a3 {[%clk 0:00:05]} 70. b6 {[%clk 0:00:02]}  Rb5 {[%clk 0:00:05]} 71. h6 {[%clk 0:00:02]}  Rb2 {[%clk 0:00:04]} 72. Ra7 {[%clk 0:00:02]}  Rxb6 {[%clk 0:00:03]} 73. Kf5 {[%clk 0:00:01]}  Rb5+ {[%clk 0:00:04]} 74. Kg4 {[%clk 0:00:02]}  Rb6 {[%clk 0:00:04]} 75. Kf5 {[%clk 0:00:03]}  Rb5+ {[%clk 0:00:04]} 76. Kg4 {[%clk 0:00:04]}  Rb2 {[%clk 0:00:05]} 77. g6 {[%clk 0:00:04]}  hxg6 {[%clk 0:00:05]} 78. Kg5 {[%clk 0:00:04]}  a2 {[%clk 0:00:05]} 79. h7+ {[%clk 0:00:04]}  Kh8 {[%clk 0:00:04]} 80. Kxg6 {[%clk 0:00:03]}  Rg2+ {[%clk 0:00:05]} 81. Kf5 {[%clk 0:00:03]}  Bg7 {[%clk 0:00:04]} 82. Ra8+ {[%clk 0:00:02]}  Kxh7 {[%clk 0:00:05]} 0-1


[Site "https://www.chess.com"]

[Event "Titled Tuesday Blitz March 08 Late 2022"]
[White "Maltsevskaya, Aleksandra"]
[Black "Brunner, Nicolas"]
[WhiteFideId "24174041"]
[BlackFideId "620246"]
[WhiteElo "2241"]
[BlackElo "2372"]
[Result "1-0"]
[Round "05"]
[TimeControl "180+1"]
[Date "2022.03.09"]
[WhiteClock "0:00:05"]
[BlackClock "0:00:04"]

1. e4 {[%clk 0:02:57]}  e5 {[%clk 0:02:59]} 2. Nf3 {[%clk 0:02:58]}  Nc6 {[%clk 0:02:58]} 3. Bb5 {[%clk 0:02:58]}  a6 {[%clk 0:02:58]} 4. Ba4 {[%clk 0:02:58]}  Nf6 {[%clk 0:02:58]} 5. O-O {[%clk 0:02:59]}  Be7 {[%clk 0:02:58]} 6. c3 {[%clk 0:02:58]}  Nxe4 {[%clk 0:02:53]} 7. Re1 {[%clk 0:02:42]}  Nc5 {[%clk 0:02:50]} 8. Bc2 {[%clk 0:02:37]}  O-O {[%clk 0:02:37]} 9. d4 {[%clk 0:02:34]}  e4 {[%clk 0:02:23]} 10. dxc5 {[%clk 0:02:18]}  exf3 {[%clk 0:02:23]} 11. Qxf3 {[%clk 0:02:19]}  d6 {[%clk 0:01:59]} 12. cxd6 {[%clk 0:02:02]}  Bxd6 {[%clk 0:01:59]} 13. Bf4 {[%clk 0:02:02]}  Be6 {[%clk 0:01:36]} 14. Nd2 {[%clk 0:01:53]}  Bxf4 {[%clk 0:01:22]} 15. Qxf4 {[%clk 0:01:53]}  Ne7 {[%clk 0:01:10]} 16. Ne4 {[%clk 0:01:42]}  Ng6 {[%clk 0:01:04]} 17. Qe3 {[%clk 0:01:41]}  Qh4 {[%clk 0:00:51]} 18. g3 {[%clk 0:01:32]}  Qh5 {[%clk 0:00:49]} 19. Qc5 {[%clk 0:00:43]}  Qxc5 {[%clk 0:00:41]} 20. Nxc5 {[%clk 0:00:43]}  Bd5 {[%clk 0:00:42]} 21. Rad1 {[%clk 0:00:37]}  Bc6 {[%clk 0:00:41]} 22. Be4 {[%clk 0:00:37]}  Bxe4 {[%clk 0:00:35]} 23. Rxe4 {[%clk 0:00:38]}  b6 {[%clk 0:00:35]} 24. Nb3 {[%clk 0:00:35]}  Rfe8 {[%clk 0:00:20]} 25. Rxe8+ {[%clk 0:00:34]}  Rxe8 {[%clk 0:00:20]} 26. Rd7 {[%clk 0:00:35]}  Re7 {[%clk 0:00:20]} 27. Rd8+ {[%clk 0:00:36]}  Nf8 {[%clk 0:00:20]} 28. Nd4 {[%clk 0:00:36]}  g6 {[%clk 0:00:18]} 29. Ra8 {[%clk 0:00:30]}  a5 {[%clk 0:00:17]} 30. b4 {[%clk 0:00:11]}  axb4 {[%clk 0:00:17]} 31. cxb4 {[%clk 0:00:12]}  Kg7 {[%clk 0:00:17]} 32. b5 {[%clk 0:00:12]}  Nd7 {[%clk 0:00:16]} 33. a4 {[%clk 0:00:11]}  Nc5 {[%clk 0:00:15]} 34. Nc6 {[%clk 0:00:12]}  Re1+ {[%clk 0:00:15]} 35. Kg2 {[%clk 0:00:12]}  Ra1 {[%clk 0:00:14]} 36. a5 {[%clk 0:00:12]}  bxa5 {[%clk 0:00:14]} 37. Rxa5 {[%clk 0:00:12]}  Rxa5 {[%clk 0:00:13]} 38. Nxa5 {[%clk 0:00:13]}  Kf6 {[%clk 0:00:13]} 39. Nc4 {[%clk 0:00:12]}  Nb3 {[%clk 0:00:12]} 40. b6 {[%clk 0:00:10]}  cxb6 {[%clk 0:00:12]} 41. Nxb6 {[%clk 0:00:11]}  Nd4 {[%clk 0:00:10]} 42. h4 {[%clk 0:00:11]}  h5 {[%clk 0:00:10]} 43. Nc4 {[%clk 0:00:12]}  Nf5 {[%clk 0:00:09]} 44. Kf3 {[%clk 0:00:12]}  Nd4+ {[%clk 0:00:09]} 45. Ke4 {[%clk 0:00:13]}  Nf5 {[%clk 0:00:09]} 46. Ne5 {[%clk 0:00:10]}  Ke6 {[%clk 0:00:09]} 47. Nf3 {[%clk 0:00:09]}  Nd6+ {[%clk 0:00:08]} 48. Kf4 {[%clk 0:00:09]}  Kf6 {[%clk 0:00:09]} 49. Ng5 {[%clk 0:00:09]}  Nc4 {[%clk 0:00:07]} 50. Ne4+ {[%clk 0:00:09]}  Ke6 {[%clk 0:00:06]} 51. Kg5 {[%clk 0:00:09]}  Ne5 {[%clk 0:00:06]} 52. Kh6 {[%clk 0:00:05]}  Ng4+ {[%clk 0:00:04]} 53. Kg7 {[%clk 0:00:05]} 1-0


[Site "https://www.chess.com"]